[Event "Titled Tuesday Blitz June 13 Early 2023"]
[White "Arencibia Monduy, Antonio"]
[Black "Yeletsky, Ivan"]
[WhiteFideId "3507939"]
[BlackFideId "24180327"]
[WhiteElo "2566"]
[BlackElo "2380"]
[Result "1/2-1/2"]
[Round "3"]
[TimeControl "180+2"]
[Date "2023.06.13"]
[WhiteClock "0:00:07"]
[BlackClock "0:00:05"]
[Board "39"]

1. e4 {[%clk 0:03:00]}  c5 {[%clk 0:02:58]} 2. Nf3 {[%clk 0:03:00]}  e6 {[%clk 0:02:58]} 3. c3 {[%clk 0:03:00]}  d5 {[%clk 0:02:58]} 4. exd5 {[%clk 0:03:01]}  exd5 {[%clk 0:02:58]} 5. d4 {[%clk 0:03:02]}  Nf6 {[%clk 0:02:59]} 6. Bd3 {[%clk 0:03:01]}  Nc6 {[%clk 0:02:53]} 7. O-O {[%clk 0:03:01]}  cxd4 {[%clk 0:02:43]} 8. Re1+ {[%clk 0:02:57]}  Be7 {[%clk 0:02:43]} 9. cxd4 {[%clk 0:02:42]}  O-O {[%clk 0:02:43]} 10. h3 {[%clk 0:02:42]}  h6 {[%clk 0:02:04]} 11. Nc3 {[%clk 0:02:40]}  Bb4 {[%clk 0:02:05]} 12. Bf4 {[%clk 0:02:37]}  Re8 {[%clk 0:02:05]} 13. Rxe8+ {[%clk 0:02:29]}  Qxe8 {[%clk 0:02:05]} 14. Qb3 {[%clk 0:02:29]}  Be6 {[%clk 0:02:00]} 15. Rc1 {[%clk 0:02:00]}  Qe7 {[%clk 0:01:22]} 16. a3 {[%clk 0:01:40]}  Ba5 {[%clk 0:01:22]} 17. Na4 {[%clk 0:01:13]}  Ne4 {[%clk 0:01:19]} 18. Qd1 {[%clk 0:00:53]}  Re8 {[%clk 0:01:03]} 19. Bb5 {[%clk 0:00:46]}  Bd7 {[%clk 0:00:46]} 20. b4 {[%clk 0:00:45]}  Bd8 {[%clk 0:00:46]} 21. Nc5 {[%clk 0:00:43]}  Nxc5 {[%clk 0:00:37]} 22. dxc5 {[%clk 0:00:43]}  Qe4 {[%clk 0:00:33]} 23. Bd6 {[%clk 0:00:36]}  Bf6 {[%clk 0:00:32]} 24. Bd3 {[%clk 0:00:33]}  Qe6 {[%clk 0:00:32]} 25. Qc2 {[%clk 0:00:28]}  Nd4 {[%clk 0:00:30]} 26. Nxd4 {[%clk 0:00:28]}  Bxd4 {[%clk 0:00:30]} 27. Rd1 {[%clk 0:00:25]}  Be5 {[%clk 0:00:24]} 28. Bxe5 {[%clk 0:00:19]}  Qxe5 {[%clk 0:00:25]} 29. Bf1 {[%clk 0:00:13]}  Be6 {[%clk 0:00:19]} 30. g3 {[%clk 0:00:13]}  d4 {[%clk 0:00:17]} 31. Bg2 {[%clk 0:00:13]}  Bd5 {[%clk 0:00:14]} 32. Bxd5 {[%clk 0:00:12]}  Qxd5 {[%clk 0:00:15]} 33. Qd2 {[%clk 0:00:12]}  d3 {[%clk 0:00:13]} 34. Kh2 {[%clk 0:00:07]}  Re2 {[%clk 0:00:13]} 35. Qf4 {[%clk 0:00:05]}  d2 {[%clk 0:00:12]} 36. g4 {[%clk 0:00:02]}  a6 {[%clk 0:00:08]} 37. Kg3 {[%clk 0:00:02]}  g6 {[%clk 0:00:04]} 38. Qf3 {[%clk 0:00:03]}  Qe5+ {[%clk 0:00:04]} 39. Kg2 {[%clk 0:00:03]}  Kg7 {[%clk 0:00:03]} 40. Qd3 {[%clk 0:00:03]}  h5 {[%clk 0:00:03]} 41. Rxd2 {[%clk 0:00:02]}  Re1 {[%clk 0:00:03]} 42. Qd4 {[%clk 0:00:02]}  h4 {[%clk 0:00:02]} 43. Qxe5+ {[%clk 0:00:02]}  Rxe5 {[%clk 0:00:03]} 44. Rd3 {[%clk 0:00:03]}  Re2 {[%clk 0:00:03]} 45. Kf3 {[%clk 0:00:03]}  Ra2 {[%clk 0:00:03]} 46. Rc3 {[%clk 0:00:03]}  Kf6 {[%clk 0:00:04]} 47. Ke3 {[%clk 0:00:04]}  Ke5 {[%clk 0:00:04]} 48. Rd3 {[%clk 0:00:03]}  f5 {[%clk 0:00:04]} 49. f4+ {[%clk 0:00:03]}  Ke6 {[%clk 0:00:04]} 50. g5 {[%clk 0:00:03]}  Rb2 {[%clk 0:00:02]} 51. Kd4 {[%clk 0:00:02]}  Rf2 {[%clk 0:00:03]} 52. Re3+ {[%clk 0:00:03]}  Kd7 {[%clk 0:00:02]} 53. Ke5 {[%clk 0:00:03]}  Ke7 {[%clk 0:00:03]} 54. Kd5+ {[%clk 0:00:02]}  Kd7 {[%clk 0:00:03]} 55. Ke5 {[%clk 0:00:03]}  Ke7 {[%clk 0:00:03]} 56. Rd3 {[%clk 0:00:03]}  Re2+ {[%clk 0:00:02]} 57. Kd5 {[%clk 0:00:03]}  Re4 {[%clk 0:00:02]} 58. c6 {[%clk 0:00:04]}  bxc6+ {[%clk 0:00:02]} 59. Kxc6 {[%clk 0:00:05]}  Rxf4 {[%clk 0:00:03]} 60. Kb6 {[%clk 0:00:05]}  Rf1 {[%clk 0:00:02]} 61. Kxa6 {[%clk 0:00:05]}  f4 {[%clk 0:00:03]} 62. b5 {[%clk 0:00:06]}  f3 {[%clk 0:00:03]} 63. b6 {[%clk 0:00:06]}  f2 {[%clk 0:00:04]} 64. Rf3 {[%clk 0:00:06]}  Kd6 {[%clk 0:00:04]} 65. Kb7 {[%clk 0:00:06]}  Kc5 {[%clk 0:00:02]} 66. a4 {[%clk 0:00:06]}  Rb1 {[%clk 0:00:02]} 67. Rxf2 {[%clk 0:00:06]}  Rxb6+ {[%clk 0:00:02]} 68. Kc7 {[%clk 0:00:07]}  Rb3 {[%clk 0:00:03]} 69. Rf6 {[%clk 0:00:06]}  Rxh3 {[%clk 0:00:03]} 70. Rxg6 {[%clk 0:00:06]}  Ra3 {[%clk 0:00:04]} 71. Rh6 {[%clk 0:00:06]}  h3 {[%clk 0:00:03]} 72. Kd7 {[%clk 0:00:05]}  Rxa4 {[%clk 0:00:04]} 73. Ke6 {[%clk 0:00:05]}  Ra6+ {[%clk 0:00:04]} 74. Kf7 {[%clk 0:00:05]}  Rxh6 {[%clk 0:00:04]} 75. gxh6 {[%clk 0:00:06]}  h2 {[%clk 0:00:05]} 76. h7 {[%clk 0:00:06]}  h1=Q {[%clk 0:00:06]} 77. Kg7 {[%clk 0:00:07]}  Qg2+ {[%clk 0:00:06]} 78. Kf8 {[%clk 0:00:07]}  Qf3+ {[%clk 0:00:07]} 79. Kg7 {[%clk 0:00:07]}  Qg4+ {[%clk 0:00:07]} 80. Kf8 {[%clk 0:00:07]}  Qf5+ {[%clk 0:00:08]} 81. Kg7 {[%clk 0:00:08]}  Qg5+ {[%clk 0:00:08]} 82. Kf8 {[%clk 0:00:07]}  Qh6+ {[%clk 0:00:08]} 83. Kg8 {[%clk 0:00:07]}  Qg6+ {[%clk 0:00:09]} 84. Kh8 {[%clk 0:00:07]}  Qf5 {[%clk 0:00:04]} 85. Kg7 {[%clk 0:00:07]}  Kd6 {[%clk 0:00:05]} 86. h8=Q {[%clk 0:00:07]}  Qg5+ {[%clk 0:00:05]} 87. Kf7 {[%clk 0:00:07]}  Qd5+ {[%clk 0:00:04]} 88. Kg6 {[%clk 0:00:06]}  Qe4+ {[%clk 0:00:04]} 89. Kf7 {[%clk 0:00:07]}  Qf5+ {[%clk 0:00:04]} 90. Qf6+ {[%clk 0:00:06]}  Qxf6+ {[%clk 0:00:05]} 91. Kxf6 {[%clk 0:00:07]} 1/2-1/2


[Site "https://www.chess.com"]

[Event "Titled Tuesday Blitz June 13 Early 2023"]
[White "Lymar, Vladislav"]
[Black "Lintchevski, Daniil"]
[WhiteFideId "14162180"]
[BlackFideId "4171055"]
[WhiteElo "2234"]
[BlackElo "2559"]
[Result "0-1"]
[Round "3"]
[TimeControl "180+2"]
[Date "2023.06.13"]
[WhiteClock "0:01:13"]
[BlackClock "0:02:32"]
[Board "40"]

1. d4 {[%clk 0:03:00]}  d5 {[%clk 0:02:54]} 2. c4 {[%clk 0:02:59]}  dxc4 {[%clk 0:02:55]} 3. Nf3 {[%clk 0:02:56]}  Nf6 {[%clk 0:02:54]} 4. e3 {[%clk 0:02:55]}  e6 {[%clk 0:02:55]} 5. Bxc4 {[%clk 0:02:54]}  c5 {[%clk 0:02:55]} 6. O-O {[%clk 0:02:53]}  a6 {[%clk 0:02:56]} 7. a4 {[%clk 0:02:47]}  Nc6 {[%clk 0:02:55]} 8. Qe2 {[%clk 0:02:47]}  cxd4 {[%clk 0:02:55]} 9. Rd1 {[%clk 0:02:46]}  Be7 {[%clk 0:02:53]} 10. exd4 {[%clk 0:02:42]}  O-O {[%clk 0:02:52]} 11. Nc3 {[%clk 0:02:36]}  Nd5 {[%clk 0:02:53]} 12. h3 {[%clk 0:02:25]}  Ncb4 {[%clk 0:02:52]} 13. Ne4 {[%clk 0:02:18]}  b6 {[%clk 0:02:47]} 14. Ne5 {[%clk 0:02:11]}  Bb7 {[%clk 0:02:47]} 15. Be3 {[%clk 0:01:39]}  Nxe3 {[%clk 0:02:38]} 16. Qxe3 {[%clk 0:01:39]}  Nc2 {[%clk 0:02:36]} 17. Qd3 {[%clk 0:01:34]}  Nxa1 {[%clk 0:02:31]} 18. Rxa1 {[%clk 0:01:35]}  b5 {[%clk 0:02:30]} 19. axb5 {[%clk 0:01:25]}  axb5 {[%clk 0:02:31]} 20. Rxa8 {[%clk 0:01:13]}  Qxa8 {[%clk 0:02:32]} 0-1


[Site "https://www.chess.com"]

[Event "Titled Tuesday Blitz June 13 Early 2023"]
[White "Harutjunyan, Gevorg"]
[Black "Kochiev, Ivan"]
[WhiteFideId "13300873"]
[BlackFideId "2917890"]
[WhiteElo "2474"]
[BlackElo "2287"]
[Result "1-0"]
[Round "3"]
[TimeControl "180+2"]
[Date "2023.06.13"]
[WhiteClock "0:00:19"]
[BlackClock "0:00:03"]
[Board "45"]

1. e4 {[%clk 0:03:00]}  c5 {[%clk 0:02:56]} 2. Nf3 {[%clk 0:03:00]}  d6 {[%clk 0:02:56]} 3. d4 {[%clk 0:02:58]}  cxd4 {[%clk 0:02:57]} 4. Nxd4 {[%clk 0:02:58]}  Nf6 {[%clk 0:02:57]} 5. Nc3 {[%clk 0:02:59]}  Nc6 {[%clk 0:02:58]} 6. Bg5 {[%clk 0:02:59]}  e6 {[%clk 0:02:58]} 7. Bb5 {[%clk 0:03:00]}  Bd7 {[%clk 0:02:56]} 8. Bxc6 {[%clk 0:03:00]}  bxc6 {[%clk 0:02:56]} 9. Qf3 {[%clk 0:03:01]}  e5 {[%clk 0:02:48]} 10. Nf5 {[%clk 0:02:59]}  Bxf5 {[%clk 0:02:46]} 11. Qxf5 {[%clk 0:03:00]}  Be7 {[%clk 0:02:46]} 12. O-O-O {[%clk 0:03:00]}  Rb8 {[%clk 0:02:44]} 13. Rd3 {[%clk 0:02:55]}  h6 {[%clk 0:02:29]} 14. Bh4 {[%clk 0:02:42]}  Qb6 {[%clk 0:02:15]} 15. b3 {[%clk 0:02:36]}  g6 {[%clk 0:02:07]} 16. Qf3 {[%clk 0:02:28]}  g5 {[%clk 0:02:07]} 17. Bg3 {[%clk 0:02:26]}  Nd7 {[%clk 0:01:50]} 18. Rhd1 {[%clk 0:02:19]}  Qa6 {[%clk 0:01:40]} 19. Kb1 {[%clk 0:02:09]}  Qa3 {[%clk 0:01:29]} 20. Qf5 {[%clk 0:01:45]}  Nc5 {[%clk 0:00:32]} 21. Rf3 {[%clk 0:01:33]}  Rf8 {[%clk 0:00:21]} 22. Qh3 {[%clk 0:00:51]}  a5 {[%clk 0:00:20]} 23. Qxh6 {[%clk 0:00:27]}  a4 {[%clk 0:00:19]} 24. Ne2 {[%clk 0:00:21]}  axb3 {[%clk 0:00:16]} 25. cxb3 {[%clk 0:00:22]}  Nxe4 {[%clk 0:00:11]} 26. Bxe5 {[%clk 0:00:20]}  g4 {[%clk 0:00:07]} 27. Bb2 {[%clk 0:00:20]}  Qa6 {[%clk 0:00:02]} 28. Re3 {[%clk 0:00:20]}  f5 {[%clk 0:00:01]} 29. Qg6+ {[%clk 0:00:19]}  Kd7 {[%clk 0:00:01]} 30. Nd4 {[%clk 0:00:19]}  Kc7 {[%clk 0:00:01]} 31. Ne6+ {[%clk 0:00:19]}  Kb7 {[%clk 0:00:02]} 32. Nxf8 {[%clk 0:00:19]}  Rxf8 {[%clk 0:00:03]} 33. Qh7 {[%clk 0:00:20]}  Re8 {[%clk 0:00:03]} 34. Qxf5 {[%clk 0:00:19]}  Ra8 {[%clk 0:00:03]} 35. Qxe4 {[%clk 0:00:18]}  Qxa2+ {[%clk 0:00:03]} 36. Kc2 {[%clk 0:00:19]} 1-0


[Site "https://www.chess.com"]

[Event "Titled Tuesday Blitz June 13 Early 2023"]
[White "Akylbek2021"]
[Black "Kosakowski, Jakub"]
[BlackFideId "1185080"]
[WhiteElo "2495"]
[BlackElo "2488"]
[Result "0-1"]
[Round "3"]
[TimeControl "180+2"]
[Date "2023.06.13"]
[WhiteClock "0:00:09"]
[BlackClock "0:00:10"]
[Board "46"]

1. e4 {[%clk 0:03:00]}  e5 {[%clk 0:02:50]} 2. Nf3 {[%clk 0:03:00]}  Nc6 {[%clk 0:02:49]} 3. d4 {[%clk 0:03:00]}  exd4 {[%clk 0:02:50]} 4. Nxd4 {[%clk 0:03:01]}  Nf6 {[%clk 0:02:50]} 5. Nc3 {[%clk 0:03:01]}  Bb4 {[%clk 0:02:50]} 6. Nxc6 {[%clk 0:02:58]}  bxc6 {[%clk 0:02:50]} 7. Bd3 {[%clk 0:02:58]}  d5 {[%clk 0:02:50]} 8. exd5 {[%clk 0:02:58]}  O-O {[%clk 0:02:51]} 9. O-O {[%clk 0:02:56]}  cxd5 {[%clk 0:02:51]} 10. Bd2 {[%clk 0:02:56]}  c6 {[%clk 0:02:50]} 11. a3 {[%clk 0:02:53]}  Bd6 {[%clk 0:02:50]} 12. h3 {[%clk 0:02:50]}  Rb8 {[%clk 0:02:49]} 13. b4 {[%clk 0:02:45]}  Bc7 {[%clk 0:02:43]} 14. Rb1 {[%clk 0:02:42]}  Qd6 {[%clk 0:02:35]} 15. f4 {[%clk 0:02:41]}  Re8 {[%clk 0:02:36]} 16. Qf3 {[%clk 0:02:35]}  Ne4 {[%clk 0:02:28]} 17. Be1 {[%clk 0:02:02]}  Bf5 {[%clk 0:02:24]} 18. Bxe4 {[%clk 0:01:57]}  Bxe4 {[%clk 0:02:24]} 19. Nxe4 {[%clk 0:01:56]}  Rxe4 {[%clk 0:02:24]} 20. Bd2 {[%clk 0:01:39]}  Rbe8 {[%clk 0:02:23]} 21. Kh1 {[%clk 0:01:27]}  h6 {[%clk 0:02:12]} 22. a4 {[%clk 0:01:19]}  Qg6 {[%clk 0:02:04]} 23. c3 {[%clk 0:01:06]}  Re2 {[%clk 0:01:46]} 24. Rbe1 {[%clk 0:01:06]}  Rxe1 {[%clk 0:01:45]} 25. Rxe1 {[%clk 0:01:06]}  Rxe1+ {[%clk 0:01:46]} 26. Bxe1 {[%clk 0:01:06]}  Qb1 {[%clk 0:01:46]} 27. Qe3 {[%clk 0:00:23]}  Bxf4 {[%clk 0:01:13]} 28. Qxf4 {[%clk 0:00:23]}  Qxe1+ {[%clk 0:01:13]} 29. Kh2 {[%clk 0:00:24]}  Qe7 {[%clk 0:01:09]} 30. Qb8+ {[%clk 0:00:20]}  Kh7 {[%clk 0:01:09]} 31. b5 {[%clk 0:00:16]}  cxb5 {[%clk 0:01:06]} 32. axb5 {[%clk 0:00:17]}  f6 {[%clk 0:01:01]} 33. Qc8 {[%clk 0:00:17]}  Qe5+ {[%clk 0:00:58]} 34. Kg1 {[%clk 0:00:17]}  Qe3+ {[%clk 0:00:58]} 35. Kh2 {[%clk 0:00:17]}  Qf4+ {[%clk 0:00:56]} 36. Kg1 {[%clk 0:00:17]}  Qe4 {[%clk 0:00:57]} 37. Qc6 {[%clk 0:00:14]}  Qe3+ {[%clk 0:00:45]} 38. Kh2 {[%clk 0:00:14]}  Qe5+ {[%clk 0:00:45]} 39. Kh1 {[%clk 0:00:13]}  Kg6 {[%clk 0:00:37]} 40. Qc5 {[%clk 0:00:14]}  Qe4 {[%clk 0:00:17]} 41. Qxa7 {[%clk 0:00:11]}  Qb1+ {[%clk 0:00:17]} 42. Kh2 {[%clk 0:00:12]}  Qxb5 {[%clk 0:00:18]} 43. Qd4 {[%clk 0:00:12]}  Qc6 {[%clk 0:00:18]} 44. Qd3+ {[%clk 0:00:12]}  Kf7 {[%clk 0:00:19]} 45. Kg1 {[%clk 0:00:11]}  Qc5+ {[%clk 0:00:19]} 46. Kf1 {[%clk 0:00:11]}  Ke6 {[%clk 0:00:17]} 47. Qe2+ {[%clk 0:00:10]}  Kd6 {[%clk 0:00:16]} 48. Ke1 {[%clk 0:00:10]}  Qg1+ {[%clk 0:00:16]} 49. Kd2 {[%clk 0:00:11]}  Qb1 {[%clk 0:00:16]} 50. Qg4 {[%clk 0:00:09]}  Qb2+ {[%clk 0:00:17]} 51. Kd3 {[%clk 0:00:10]}  Qb1+ {[%clk 0:00:17]} 52. Kd2 {[%clk 0:00:10]}  g5 {[%clk 0:00:17]} 53. Qc8 {[%clk 0:00:10]}  Qb2+ {[%clk 0:00:17]} 54. Kd3 {[%clk 0:00:10]}  Qb5+ {[%clk 0:00:18]} 55. Kd2 {[%clk 0:00:10]}  Qd7 {[%clk 0:00:17]} 56. Qb8+ {[%clk 0:00:10]}  Ke6 {[%clk 0:00:18]} 57. Qb6+ {[%clk 0:00:10]}  Kf5 {[%clk 0:00:17]} 58. Qf2+ {[%clk 0:00:10]}  Kg6 {[%clk 0:00:18]} 59. Qd4 {[%clk 0:00:10]}  Qf5 {[%clk 0:00:18]} 60. g4 {[%clk 0:00:10]}  Qf4+ {[%clk 0:00:14]} 61. Qxf4 {[%clk 0:00:10]}  gxf4 {[%clk 0:00:14]} 62. Ke2 {[%clk 0:00:11]}  f5 {[%clk 0:00:12]} 63. Kf3 {[%clk 0:00:10]}  Kg5 {[%clk 0:00:11]} 64. h4+ {[%clk 0:00:10]}  Kxh4 {[%clk 0:00:11]} 65. gxf5 {[%clk 0:00:10]}  Kg5 {[%clk 0:00:12]} 66. f6 {[%clk 0:00:10]}  Kxf6 {[%clk 0:00:12]} 67. Kxf4 {[%clk 0:00:11]}  h5 {[%clk 0:00:12]} 68. Kg3 {[%clk 0:00:10]}  Kf5 {[%clk 0:00:09]} 69. Kh4 {[%clk 0:00:10]}  Ke4 {[%clk 0:00:10]} 70. Kxh5 {[%clk 0:00:11]}  Kd3 {[%clk 0:00:10]} 71. c4 {[%clk 0:00:09]}  Kxc4 {[%clk 0:00:10]} 0-1


[Site "https://www.chess.com"]

[Event "Titled Tuesday Blitz June 13 Early 2023"]
[White "Wojtaszek, Radoslaw"]
[Black "a-z30"]
[WhiteFideId "1118358"]
[WhiteElo "2586"]
[BlackElo "2444"]
[Result "1/2-1/2"]
[Round "3"]
[TimeControl "180+2"]
[Date "2023.06.13"]
[WhiteClock "0:01:15"]
[BlackClock "0:00:10"]
[Board "47"]

1. d4 {[%clk 0:03:00]}  d6 {[%clk 0:02:48]} 2. e4 {[%clk 0:02:57]}  Nf6 {[%clk 0:02:48]} 3. Nc3 {[%clk 0:02:57]}  g6 {[%clk 0:02:48]} 4. Nf3 {[%clk 0:02:52]}  Bg7 {[%clk 0:02:49]} 5. Be2 {[%clk 0:02:52]}  O-O {[%clk 0:02:49]} 6. O-O {[%clk 0:02:52]}  Bg4 {[%clk 0:02:50]} 7. Bg5 {[%clk 0:02:46]}  Nc6 {[%clk 0:02:47]} 8. d5 {[%clk 0:02:45]}  Bxf3 {[%clk 0:02:46]} 9. Bxf3 {[%clk 0:02:46]}  Ne5 {[%clk 0:02:46]} 10. Be2 {[%clk 0:02:43]}  c6 {[%clk 0:02:46]} 11. Kh1 {[%clk 0:02:33]}  cxd5 {[%clk 0:02:45]} 12. exd5 {[%clk 0:02:34]}  Rc8 {[%clk 0:02:45]} 13. a4 {[%clk 0:02:17]}  Nc4 {[%clk 0:02:31]} 14. Rb1 {[%clk 0:02:07]}  a6 {[%clk 0:01:11]} 15. Re1 {[%clk 0:02:00]}  Nxb2 {[%clk 0:00:49]} 16. Rxb2 {[%clk 0:02:01]}  Rxc3 {[%clk 0:00:49]} 17. Rxb7 {[%clk 0:02:00]}  Ne4 {[%clk 0:00:47]} 18. Bxe7 {[%clk 0:01:31]}  Qc8 {[%clk 0:00:33]} 19. Qb1 {[%clk 0:01:30]}  Rxc2 {[%clk 0:00:16]} 20. Bxf8 {[%clk 0:01:25]}  Nxf2+ {[%clk 0:00:15]} 21. Kg1 {[%clk 0:01:25]}  Bd4 {[%clk 0:00:16]} 22. Bg7 {[%clk 0:01:14]}  Nh3+ {[%clk 0:00:11]} 23. Kh1 {[%clk 0:01:14]}  Nf2+ {[%clk 0:00:10]} 24. Kg1 {[%clk 0:01:14]}  Nh3+ {[%clk 0:00:10]} 25. Kh1 {[%clk 0:01:15]}  Nf2+ {[%clk 0:00:10]} 26. Kg1 {[%clk 0:01:15]} 1/2-1/2


[Site "https://www.chess.com"]

[Event "Titled Tuesday Blitz June 13 Early 2023"]
[White "Andreassen, Lars"]
[Black "Pranesh M"]
[WhiteFideId "1504878"]
[BlackFideId "35028600"]
[WhiteElo "2119"]
[BlackElo "2437"]
[Result "0-1"]
[Round "3"]
[TimeControl "180+2"]
[Date "2023.06.13"]
[WhiteClock "0:00:00"]
[BlackClock "0:00:15"]
[Board "50"]

1. d4 {[%clk 0:02:35]}  d5 {[%clk 0:03:00]} 2. Nf3 {[%clk 0:02:36]}  e6 {[%clk 0:02:59]} 3. c4 {[%clk 0:02:36]}  Nf6 {[%clk 0:03:00]} 4. Nc3 {[%clk 0:02:36]}  Nbd7 {[%clk 0:03:00]} 5. Bg5 {[%clk 0:02:34]}  dxc4 {[%clk 0:03:00]} 6. e3 {[%clk 0:02:33]}  Nb6 {[%clk 0:03:00]} 7. Ne5 {[%clk 0:02:31]}  h6 {[%clk 0:02:56]} 8. Bxf6 {[%clk 0:02:30]}  Qxf6 {[%clk 0:02:54]} 9. Nxc4 {[%clk 0:02:30]}  Nxc4 {[%clk 0:02:53]} 10. Bxc4 {[%clk 0:02:31]}  Bd6 {[%clk 0:02:39]} 11. e4 {[%clk 0:02:26]}  e5 {[%clk 0:02:36]} 12. d5 {[%clk 0:02:12]}  O-O {[%clk 0:02:33]} 13. O-O {[%clk 0:02:11]}  a6 {[%clk 0:02:31]} 14. Be2 {[%clk 0:02:08]}  Qg6 {[%clk 0:02:28]} 15. Kh1 {[%clk 0:02:06]}  f5 {[%clk 0:02:27]} 16. f3 {[%clk 0:01:41]}  Qg5 {[%clk 0:02:20]} 17. exf5 {[%clk 0:01:39]}  Bxf5 {[%clk 0:02:20]} 18. Ne4 {[%clk 0:01:38]}  Bxe4 {[%clk 0:02:11]} 19. fxe4 {[%clk 0:01:39]}  Rxf1+ {[%clk 0:02:11]} 20. Qxf1 {[%clk 0:01:37]}  Qd2 {[%clk 0:02:12]} 21. Rb1 {[%clk 0:01:31]}  Rf8 {[%clk 0:02:04]} 22. Bf3 {[%clk 0:01:31]}  g5 {[%clk 0:02:03]} 23. Qd1 {[%clk 0:01:26]}  Qf2 {[%clk 0:01:48]} 24. h3 {[%clk 0:01:18]}  Bc5 {[%clk 0:01:39]} 25. Qe1 {[%clk 0:01:04]}  Rxf3 {[%clk 0:01:20]} 26. gxf3 {[%clk 0:01:02]}  Qxf3+ {[%clk 0:01:21]} 27. Kh2 {[%clk 0:01:00]}  Be3 {[%clk 0:01:20]} 28. Qf1 {[%clk 0:00:45]}  Bf4+ {[%clk 0:01:18]} 29. Kg1 {[%clk 0:00:45]}  Qxe4 {[%clk 0:01:14]} 30. Re1 {[%clk 0:00:40]}  Qd4+ {[%clk 0:01:07]} 31. Qf2 {[%clk 0:00:37]}  Qxd5 {[%clk 0:01:07]} 32. Qc2 {[%clk 0:00:28]}  Qd4+ {[%clk 0:01:07]} 33. Kf1 {[%clk 0:00:23]}  Kg7 {[%clk 0:00:45]} 34. Rd1 {[%clk 0:00:20]}  Qe3 {[%clk 0:00:34]} 35. Qxc7+ {[%clk 0:00:19]}  Kg6 {[%clk 0:00:34]} 36. Rd6+ {[%clk 0:00:16]}  Kh5 {[%clk 0:00:34]} 37. Qf7+ {[%clk 0:00:15]}  Kh4 {[%clk 0:00:34]} 38. Rxh6+ {[%clk 0:00:09]}  Kg3 {[%clk 0:00:34]} 39. Qb3 {[%clk 0:00:08]}  Qxb3 {[%clk 0:00:28]} 40. axb3 {[%clk 0:00:09]}  Kf3 {[%clk 0:00:29]} 41. Rb6 {[%clk 0:00:05]}  e4 {[%clk 0:00:19]} 42. Rxb7 {[%clk 0:00:04]}  Bd6 {[%clk 0:00:15]} 43. Rf7+ {[%clk 0:00:00]}  Ke3 {[%clk 0:00:15]} 0-1


[Site "https://www.chess.com"]

[Event "Titled Tuesday Blitz June 13 Early 2023"]
[White "Shimanov, Aleksandr"]
[Black "Kumsiashvili, Nikoloz"]
[WhiteFideId "4198603"]
[BlackFideId "13600621"]
[WhiteElo "2631"]
[BlackElo "2299"]
[Result "1-0"]
[Round "3"]
[TimeControl "180+2"]
[Date "2023.06.13"]
[WhiteClock "0:00:08"]
[BlackClock "0:00:00"]
[Board "51"]

1. c4 {[%clk 0:03:00]}  e5 {[%clk 0:02:58]} 2. Nc3 {[%clk 0:02:55]}  Nc6 {[%clk 0:02:58]} 3. e3 {[%clk 0:02:55]}  g6 {[%clk 0:02:47]} 4. d4 {[%clk 0:02:53]}  Bg7 {[%clk 0:02:44]} 5. Nge2 {[%clk 0:02:44]}  d6 {[%clk 0:02:43]} 6. g3 {[%clk 0:02:32]}  h5 {[%clk 0:02:38]} 7. h3 {[%clk 0:02:32]}  h4 {[%clk 0:02:36]} 8. g4 {[%clk 0:02:32]}  f5 {[%clk 0:02:36]} 9. gxf5 {[%clk 0:02:32]}  Bxf5 {[%clk 0:02:37]} 10. d5 {[%clk 0:02:32]}  Nce7 {[%clk 0:02:28]} 11. e4 {[%clk 0:02:31]}  Bd7 {[%clk 0:02:24]} 12. Bg5 {[%clk 0:02:28]}  Bf6 {[%clk 0:02:15]} 13. Be3 {[%clk 0:02:28]}  g5 {[%clk 0:01:53]} 14. Qd2 {[%clk 0:01:59]}  Ng6 {[%clk 0:01:53]} 15. O-O-O {[%clk 0:01:59]}  Nf4 {[%clk 0:01:34]} 16. Kb1 {[%clk 0:01:58]}  Ne7 {[%clk 0:01:31]} 17. Nc1 {[%clk 0:01:51]}  Neg6 {[%clk 0:01:27]} 18. c5 {[%clk 0:01:33]}  g4 {[%clk 0:01:02]} 19. hxg4 {[%clk 0:01:27]}  Bxg4 {[%clk 0:01:02]} 20. Bb5+ {[%clk 0:01:25]}  Kf7 {[%clk 0:00:58]} 21. Rdg1 {[%clk 0:01:21]}  Bf3 {[%clk 0:00:53]} 22. Rh2 {[%clk 0:01:14]}  h3 {[%clk 0:00:53]} 23. N1e2 {[%clk 0:01:06]}  Nxe2 {[%clk 0:00:21]} 24. Bxe2 {[%clk 0:01:07]}  Bg2 {[%clk 0:00:21]} 25. Bg4 {[%clk 0:01:04]}  Qf8 {[%clk 0:00:16]} 26. Be6+ {[%clk 0:01:03]}  Ke7 {[%clk 0:00:16]} 27. cxd6+ {[%clk 0:01:03]}  cxd6 {[%clk 0:00:16]} 28. a3 {[%clk 0:00:44]}  Nf4 {[%clk 0:00:15]} 29. Ka2 {[%clk 0:00:42]}  a6 {[%clk 0:00:13]} 30. Bf5 {[%clk 0:00:38]}  Bg5 {[%clk 0:00:11]} 31. Ne2 {[%clk 0:00:36]}  Qh6 {[%clk 0:00:11]} 32. Rgxg2 {[%clk 0:00:24]}  hxg2 {[%clk 0:00:06]} 33. Rxg2 {[%clk 0:00:23]}  Rag8 {[%clk 0:00:03]} 34. Rg3 {[%clk 0:00:11]}  Kf7 {[%clk 0:00:00]} 35. Rf3 {[%clk 0:00:08]} 1-0


[Site "https://www.chess.com"]

[Event "Titled Tuesday Blitz June 13 Early 2023"]
[White "Ibadov, Dashgyn"]
[Black "Keymer, Vincent"]
[WhiteFideId "24107514"]
[BlackFideId "12940690"]
[WhiteElo "2208"]
[BlackElo "2669"]
[Result "0-1"]
[Round "3"]
[TimeControl "180+2"]
[Date "2023.06.13"]
[WhiteClock "0:00:00"]
[BlackClock "0:01:27"]
[Board "53"]

1. e4 {[%clk 0:03:00]}  c6 {[%clk 0:02:58]} 2. d4 {[%clk 0:02:59]}  d5 {[%clk 0:02:59]} 3. exd5 {[%clk 0:03:00]}  cxd5 {[%clk 0:02:57]} 4. Bd3 {[%clk 0:03:00]}  Nf6 {[%clk 0:02:57]} 5. h3 {[%clk 0:02:59]}  Nc6 {[%clk 0:02:57]} 6. c3 {[%clk 0:02:55]}  e5 {[%clk 0:02:57]} 7. dxe5 {[%clk 0:02:55]}  Nxe5 {[%clk 0:02:58]} 8. Nf3 {[%clk 0:02:55]}  Nxd3+ {[%clk 0:02:58]} 9. Qxd3 {[%clk 0:02:56]}  Bd6 {[%clk 0:02:58]} 10. O-O {[%clk 0:02:56]}  O-O {[%clk 0:02:59]} 11. Bg5 {[%clk 0:02:55]}  h6 {[%clk 0:02:59]} 12. Bh4 {[%clk 0:02:54]}  Bf4 {[%clk 0:03:00]} 13. Nbd2 {[%clk 0:02:50]}  Qb6 {[%clk 0:02:59]} 14. Bxf6 {[%clk 0:02:26]}  Qxf6 {[%clk 0:03:00]} 15. Nb3 {[%clk 0:02:15]}  Rd8 {[%clk 0:02:51]} 16. Rfe1 {[%clk 0:02:10]}  Bc7 {[%clk 0:02:50]} 17. Nbd4 {[%clk 0:02:06]}  a6 {[%clk 0:02:39]} 18. Re2 {[%clk 0:02:03]}  Bd7 {[%clk 0:02:34]} 19. Rae1 {[%clk 0:02:00]}  Bd6 {[%clk 0:02:32]} 20. Ne5 {[%clk 0:01:57]}  Be8 {[%clk 0:02:15]} 21. Nf5 {[%clk 0:01:44]}  Bb5 {[%clk 0:02:09]} 22. c4 {[%clk 0:01:12]}  dxc4 {[%clk 0:02:06]} 23. Qf3 {[%clk 0:00:39]}  c3 {[%clk 0:02:03]} 24. Nxh6+ {[%clk 0:00:17]}  Qxh6 {[%clk 0:02:01]} 25. Qxf7+ {[%clk 0:00:18]}  Kh7 {[%clk 0:01:55]} 26. Qf5+ {[%clk 0:00:16]}  g6 {[%clk 0:01:55]} 27. Nxg6 {[%clk 0:00:04]}  Bxe2 {[%clk 0:01:38]} 28. Ne7+ {[%clk 0:00:04]}  Kh8 {[%clk 0:01:29]} 29. Rxe2 {[%clk 0:00:00]}  Qc1+ {[%clk 0:01:27]} 0-1


[Site "https://www.chess.com"]